[Event "94th Paris-ch  2019"]
[Site "Paris"]
[Date "2019.07.13"]
[Round "8.14"]
[White "Vardaan Nagpal"]
[Black "Philippe, Guillaume"]
[Result "0-1"]
[ECO "A31"]
[WhiteElo "2355"]
[BlackElo "2344"]
[Annotator "NA"]
[PlyCount "178"]
[EventDate "2019.07.07"]
[EventType "swiss"]
[EventCountry "FRA"]
[SourceTitle "playchess.com"]
[Source "ChessBase"]
[SourceQuality "1"]
[TimeControl "5400+30"]

1. e4 {[%emt 12:13:18]} c5 {[%emt 0:00:30]} 2. Nf3 {[%emt 0:00:06]} e6 {[%emt 0:00:18]} 3. d4 {[%emt 0:00:12]} cxd4 {[%emt 0:00:05]} 4. Nxd4 {[%emt 0:00:02]} a6 {[%emt 0:00:10]} 5. c4 {[%emt 0:00:09]} Nf6 {[%emt 0:01:14]} 6. Nc3 {[%emt 0:00:03]} Qc7 {[%emt 0:00:14]} 7. a3 {[%emt 0:00:08]} b6 {[%emt 0:00:51]} 8. Be3 {[%emt 0:00:10]} Bb7 {[%emt 0:00:09]} 9. f3 {[%emt 0:00:05]} d6 {[%emt 0:00:55]} 10. Qd2 {[%emt 0:01:14]} Nbd7 {[%emt 0:00:17]} 11. Be2 {[%emt 0:00:10]} Be7 {[%emt 0:00:19]} 12. O-O {[%emt 0:00:08]} O-O {[%emt 0:00:05]} 13. Rfd1 {[%emt 0:00:36]} Rac8 {[%emt 0:00:58]} 14. Rac1 {[%emt 0:00:29]} Qb8 {[%emt 0:00:18]} 15. Bf1 {[%emt 0:01:41]} Rfe8 {[%emt 0:03:30]} 16. b4 {[%emt 0:01:25]} Bd8 {[%emt 0:05:20]} 17. Qf2 {[%emt 0:12:53]} Bc7 {[%emt 0:05:24]} 18. g3 {[%emt 0:00:18]} Ne5 {[%emt 0:10:10] A31: Symmetrical English: 2 Nf3 Nf6 3 d4} 19. Be2 {[%emt 0:03:51]} Bd8 $146 {[%emt 0:16:23]} ({Predecessor:} 19... Qa8 20. g4 d5 21. exd5 exd5 22. g5 Nfd7 23. cxd5 b5 24. Nb3 Nc4 25. Bxc4 bxc4 26. Nc5 {0-1 (37) Garrido Olivares,R (2112)-Reig Munoz,J (2078) Valencia 2004}) 20. Na4 {[%emt 0:02:46]} Ba8 {[%emt 0:00:12]} 21. Nb3 {[%emt 0:10:23]} Nxc4 {[%emt 0:06:48]} 22. Bxc4 {[%emt 0:20:18]} b5 {[%emt 0:00:10]} 23. Nb2 {[%emt 0:00:04]} bxc4 {[%emt 0:00:39]} 24. Nxc4 {[%emt 0:00:02]} d5 {[%emt 0:02:47]} 25. Ba7 {[%emt 0:00:15]} Qc7 {[%emt 0:12:26]} 26. Nd6 {[%emt 0:14:11]} Qxd6 {[%emt 0:00:16]} 27. Rxc8 {[%emt 0:00:03]} Bb7 {[%emt 0:00:12]} 28. Rcc1 {[%emt 0:00:09]} e5 {[%emt 0:01:05]} 29. Nc5 {[%emt 0:00:51]} Ba8 {[%emt 0:01:09]} 30. exd5 {[%emt 0:00:53]} Nxd5 {[%emt 0:00:06]} 31. Ne4 {[%emt 0:00:19]} Qe6 {[%emt 0:00:06]} 32. Bc5 {[%emt 0:07:20]} f5 {[%emt 0:00:39]} 33. Nc3 {[%emt 0:01:27]} Bg5 {[%emt 0:04:24]} 34. Nxd5 {[%emt 0:00:59]} Bxd5 {[%emt 0:00:06]} 35. Rc3 {[%emt 0:04:03]} f4 {[%emt 0:00:44]} 36. Rcd3 {[%emt 0:02:12]} Bb3 $18 {[%emt 0:04:08]} 37. Rd6 {[%emt 0:00:41]} Qc4 {[%emt 0:00:36]} 38. Re1 {[%emt 0:01:15]} h6 {[%emt 0:01:44]} 39. Qe2 {[%emt 0:05:58]} Qf7 {[%emt 0:01:25]} 40. Qe4 {[%emt 0:00:57]} fxg3 {[%emt 0:00:54]} 41. hxg3 {[%emt 0:00:02]} Bf6 {[%emt 0:00:13]} 42. Kg2 {[%emt 0:00:56]} Bc4 {[%emt 0:03:05]} 43. Red1 {[%emt 0:00:39]} Be6 {[%emt 0:01:07]} 44. Rxa6 {[%emt 0:01:29]} Bc8 {[%emt 0:03:08]} 45. Ra8 {[%emt 0:01:55]} Qa2+ {[%emt 0:02:31]} 46. Kg1 {[%emt 0:00:11]} Kh8 {[%emt 0:00:54]} 47. Qc6 {[%emt 0:00:52]} Qg8 {[%emt 0:00:06]} 48. Qd5 {[%emt 0:02:17]} Be6 {[%emt 0:01:24]} 49. Rxe8 {[%emt 0:00:03]} Qxe8 {[%emt 0:00:07]} 50. Qe4 {[%emt 0:00:52]} Qa4 {[%emt 0:00:14]} 51. Qd3 {[%emt 0:02:41]} Bc4 {[%emt 0:02:56]} 52. Qd7 {[%emt 0:00:13]} Qxa3 {[%emt 0:00:26]} 53. Qc8+ {[%emt 0:00:23]} Bg8 {[%emt 0:00:43]} 54. Qf5 {[%emt 0:00:27]} Qb3 {[%emt 0:00:20]} 55. Qd3 {[%emt 0:00:34]} Qa4 {[%emt 0:00:18]} 56. Re1 {[%emt 0:00:29]} Bh7 {[%emt 0:00:25]} 57. Qe2 {[%emt 0:00:33]} Qb3 {[%emt 0:00:20]} 58. Kh2 {[%emt 0:00:48]} Bd3 {[%emt 0:00:23]} 59. Qf2 {[%emt 0:00:11]} Bg6 {[%emt 0:01:43]} 60. Re3 {[%emt 0:00:27]} Qb1 {[%emt 0:01:01]} 61. Qe1 {[%emt 0:00:21]} Qf5 {[%emt 0:00:26]} 62. Kg2 {[%emt 0:00:41]} Be8 {[%emt 0:00:34]} 63. Qe2 {[%emt 0:01:20]} Bd7 {[%emt 0:00:20]} 64. Kg1 {[%emt 0:00:36]} Qh3 {[%emt 0:00:31]} 65. Qh2 {[%emt 0:00:28]} Qf5 {[%emt 0:00:20]} 66. Qa2 {[%emt 0:01:59]} Bc6 {[%emt 0:00:54]} 67. Qe2 {[%emt 0:00:33]} Qh3 {[%emt 0:00:30]} 68. Qg2 {[%emt 0:00:05]} Qf5 {[%emt 0:00:06]} 69. Qf1 {[%emt 0:00:49]} Bg5 {[%emt 0:00:43]} 70. Rc3 {[%emt 0:00:20]} Qg6 {[%emt 0:01:19]} 71. Kf2 {[%emt 0:00:44]} Qf5 {[%emt 0:06:31]} 72. Kg1 {[%emt 0:02:11]} Qg6 {[%emt 0:00:56]} 73. Kh2 {[%emt 0:00:12]} Bd2 {[%emt 0:00:39]} 74. Rd3 {[%emt 0:00:37]} Bg5 {[%emt 0:00:29]} 75. Ra3 {[%emt 0:00:45]} Bf6 {[%emt 0:00:44]} 76. Qe2 {[%emt 0:00:38]} Qh5+ {[%emt 0:00:45]} 77. Kg1 {[%emt 0:00:17]} e4 {[%emt 0:00:41]} 78. Qa6 {[%emt 0:01:02]} Qd5 {[%emt 0:00:47]} 79. Qc8+ {[%emt 0:00:33]} Kh7 {[%emt 0:00:04]} 80. Qh3 {[%emt 0:00:29]} exf3 {[%emt 0:00:09]} 81. Qf1 {[%emt 0:00:17]} Qe5 {[%emt 0:00:47]} 82. Qf2 {[%emt 0:00:29]} h5 {[%emt 0:00:32]} 83. Ra6 {[%emt 0:00:21]} Be4 {[%emt 0:00:32]} 84. Be3 {[%emt 0:00:42]} Qf5 {[%emt 0:00:48]} 85. Ra5 {[%emt 0:00:18]} Qg4 {[%emt 0:00:20]} 86. Qh2 {[%emt 0:00:54]} Bg6 {[%emt 0:00:32]} 87. Kf2 {[%emt 0:00:30]} h4 {[%emt 0:02:01]} 88. Ra2 {[%emt 0:00:34]} Bh5 {[%emt 0:00:24]} 89. b5 {[%emt 0:00:21]} hxg3+ {[%emt 0:00:33]} 0-1

[Event "94th Paris-ch  2019"]
[Site "Paris"]
[Date "2019.07.13"]
[Round "8.15"]
[White "Jeet, Jain"]
[Black "O'Sullivan, Thomas"]
[Result "0-1"]
[ECO "B48"]
[WhiteElo "2258"]
[BlackElo "2291"]
[Annotator "ChessBase"]
[PlyCount "94"]
[EventDate "2019.07.07"]
[EventType "swiss"]
[EventCountry "FRA"]
[SourceTitle "playchess.com"]
[Source "ChessBase"]
[SourceQuality "1"]
[TimeControl "5400+30"]

1. e4 {[%emt 0:00:00]} c5 {[%emt 0:14:47]} 2. Nf3 {[%emt 0:00:00]} e6 {[%emt 0:05:02]} 3. d4 {[%emt 0:00:09]} cxd4 {[%emt 0:00:04]} 4. Nxd4 {[%emt 0:00:12]} Nc6 {[%emt 0:00:04]} 5. Nc3 {[%emt 0:00:27]} Qc7 {[%emt 0:00:03]} 6. Be3 {[%emt 0:00:37]} a6 {[%emt 0:00:04]} 7. Qd2 {[%emt 0:00:39]} Nf6 {[%emt 0:00:09]} 8. f4 {[%emt 0:00:49]} Bb4 {[%emt 0:00:19]} 9. Bd3 {[%emt 0:00:31]} Na5 {[%emt 0:00:10]} 10. a3 {[%emt 0:01:48]} Bxc3 {[%emt 0:02:12]} 11. Qxc3 {[%emt 0:01:35]} Qxc3+ {[%emt 0:00:03]} 12. bxc3 {[%emt 0:00:13]} d5 {[%emt 0:00:01]} 13. exd5 {[%emt 0:05:09]} exd5 {[%emt 0:01:18]} 14. Nb3 {[%emt 0:00:51]} Nc4 {[%emt 0:00:07]} 15. Bd4 {[%emt 0:00:13]} Ne4 {[%emt 0:02:56]} 16. O-O {[%emt 0:05:04]} O-O {[%emt 0:03:07]} 17. Nc5 {[%emt 0:02:25]} Nxc5 {[%emt 0:06:03]} 18. Bxc5 {[%emt 0:01:21]} Re8 {[%emt 0:04:13]} 19. Rfe1 {[%emt 0:07:32]} Bd7 {[%emt 0:00:44]} 20. Bxc4 {[%emt 0:06:19]} dxc4 {[%emt 0:04:44]} 21. Rxe8+ {[%emt 0:00:45]} Rxe8 {[%emt 0:00:12]} 22. Kf2 {[%emt 0:00:11]} Bf5 {[%emt 0:03:49]} 23. Rb1 {[%emt 0:02:05]} b5 {[%emt 0:06:28]} 24. Rc1 {[%emt 0:01:16]} f6 {[%emt 0:02:41]} 25. Bd4 {[%emt 0:01:03]} Kf7 {[%emt 0:00:45]} 26. Kf3 {[%emt 0:00:45]} h5 {[%emt 0:02:35]} 27. Kf2 {[%emt 0:00:14]} h4 {[%emt 0:06:22]} 28. Re1 {[%emt 0:02:10]} Rxe1 29. Kxe1 {[%emt 0:00:02]} Bxc2 {[%emt 0:05:23]} 30. Bf2 {[%emt 0:00:21]} Kg6 {[%emt 0:10:07]} 31. Ke2 {[%emt 0:03:47]} Kf5 {[%emt 0:00:24]} 32. Ke3 {[%emt 0:00:29]} g5 {[%emt 0:00:47]} 33. fxg5 {[%emt 0:00:12]} fxg5 {[%emt 0:00:18]} 34. h3 {[%emt 0:01:06]} Be4 {[%emt 0:02:37]} 35. g3 {[%emt 0:00:08]} hxg3 {[%emt 0:00:10]} 36. Bxg3 {[%emt 0:00:01]} Bg2 {[%emt 0:00:15]} 37. h4 {[%emt 0:21:32]} Kg4 {[%emt 0:00:06]} 38. h5 {[%emt 0:00:08]} Kxh5 {[%emt 0:00:45]} 39. Kd4 {[%emt 0:00:24]} Kg4 {[%emt 0:00:34]} 40. Bd6 {[%emt 0:00:05]} Bf1 {[%emt 0:04:10]} 41. Kc5 {[%emt 0:01:37]} Be2 {[%emt 0:00:29]} 42. Kd4 {[%emt 0:09:03]} Kf3 {[%emt 0:00:16]} 43. Kc5 {[%emt 0:02:26]} Bd1 {[%emt 0:01:48]} 44. Kb6 {[%emt 0:01:43]} Ba4 {[%emt 0:00:35]} 45. Kxa6 {[%emt 0:00:18]} g4 {[%emt 0:00:12]} 46. Kb6 {[%emt 0:00:56]} g3 {[%emt 0:00:25]} 47. Bc5 {[%emt 0:02:03]} g2 {[%emt 0:00:16]} 0-1

[Event "94th Paris-ch  2019"]
[Site "Paris"]
[Date "2019.07.13"]
[Round "8.17"]
[White "Eden, James"]
[Black "Manoeuvre, Antoine"]
[Result "1/2-1/2"]
[ECO "C17"]
[WhiteElo "2343"]
[BlackElo "2325"]
[Annotator "ChessBase"]
[PlyCount "78"]
[EventDate "2019.07.07"]
[EventType "swiss"]
[EventCountry "FRA"]
[SourceTitle "playchess.com"]
[Source "ChessBase"]
[SourceQuality "1"]
[TimeControl "5400+30"]

1. e4 {[%emt 0:00:00]} e6 {[%emt 0:01:13]} 2. d4 {[%emt 0:00:04]} d5 {[%emt 0:00:05]} 3. Nc3 {[%emt 0:00:41]} Bb4 {[%emt 0:01:31]} 4. e5 {[%emt 0:00:39]} c5 {[%emt 0:01:59]} 5. Bd2 {[%emt 0:00:38]} Ne7 {[%emt 0:06:31]} 6. Nb5 {[%emt 0:00:26]} Bxd2+ {[%emt 0:01:35]} 7. Qxd2 {[%emt 0:02:16]} O-O {[%emt 0:00:52]} 8. f4 {[%emt 0:00:28]} a6 {[%emt 0:09:35]} 9. Nc3 {[%emt 0:01:42]} cxd4 {[%emt 0:01:54]} 10. Nce2 {[%emt 0:00:18]} Nbc6 {[%emt 0:02:02]} 11. Nf3 {[%emt 0:00:47]} Nf5 {[%emt 0:11:09]} 12. Nexd4 {[%emt 0:02:40]} Ncxd4 {[%emt 0:03:21]} 13. Nxd4 {[%emt 0:00:10]} Qh4+ {[%emt 0:01:16]} 14. g3 {[%emt 0:00:50]} Nxd4 {[%emt 0:03:34]} 15. Qxd4 {[%emt 0:01:05]} Qe7 {[%emt 0:00:01]} 16. O-O-O {[%emt 0:03:33]} Bd7 {[%emt 0:01:36]} 17. Kb1 {[%emt 0:04:51]} Bb5 {[%emt 0:03:20]} 18. g4 {[%emt 0:17:08]} Bxf1 {[%emt 0:03:00]} 19. Rhxf1 {[%emt 0:10:06]} Rfc8 {[%emt 0:00:06]} 20. f5 {[%emt 0:16:33]} Rc4 {[%emt 0:03:33]} 21. Qf2 {[%emt 0:05:33]} Rac8 {[%emt 0:01:56]} 22. c3 {[%emt 0:05:33]} Rxg4 {[%emt 0:04:33]} 23. f6 {[%emt 0:01:26]} Qc5 {[%emt 0:02:39]} 24. Rd4 {[%emt 0:01:33]} Rxd4 {[%emt 0:02:18]} 25. cxd4 {[%emt 0:00:21]} Qc4 {[%emt 0:00:42]} 26. Rg1 {[%emt 0:04:39]} Qd3+ {[%emt 0:02:11]} 27. Ka1 {[%emt 0:00:10]} g6 {[%emt 0:01:06]} 28. Qf4 {[%emt 0:00:39]} Qh3 {[%emt 0:00:46]} 29. Rc1 {[%emt 0:01:43]} Rxc1+ {[%emt 0:10:17]} 30. Qxc1 {[%emt 0:00:14]} h5 {[%emt 0:00:36]} 31. b3 {[%emt 0:07:02]} Qd3 {[%emt 0:01:51]} 32. Qc8+ {[%emt 0:03:15]} Kh7 {[%emt 0:00:16]} 33. Qf8 {[%emt 0:00:44]} Qxd4+ {[%emt 0:01:29]} 34. Kb1 {[%emt 0:00:17]} Qd1+ {[%emt 0:02:49]} 35. Kb2 {[%emt 0:00:02]} Qd2+ {[%emt 0:00:10]} 36. Ka3 {[%emt 0:01:52]} Qa5+ {[%emt 0:00:06]} 37. Kb2 {[%emt 0:00:05]} Qd2+ {[%emt 0:00:04]} 38. Ka3 {[%emt 0:00:06]} Qa5+ {[%emt 0:00:03]} 39. Kb2 {[%emt 0:00:05]} Qd2+ {[%emt 0:00:04]} 1/2-1/2

[Event "94th Paris-ch  2019"]
[Site "Paris"]
[Date "2019.07.13"]
[Round "8.18"]
[White "Hingouet, Matthieu"]
[Black "Smith, Matthieu"]
[Result "1/2-1/2"]
[ECO "E40"]
[WhiteElo "2245"]
[BlackElo "2208"]
[Annotator "NA"]
[PlyCount "141"]
[EventDate "2019.07.07"]
[EventType "swiss"]
[EventCountry "FRA"]
[SourceTitle "playchess.com"]
[Source "ChessBase"]
[SourceQuality "1"]
[TimeControl "5400+30"]

1. d4 {[%emt 0:00:00]} Nf6 {[%emt 0:22:02]} 2. c4 {[%emt 0:00:00]} e6 {[%emt 0:03:39]} 3. Nc3 {[%emt 0:00:00]} Bb4 {[%emt 0:00:04]} 4. e3 {[%emt 0:00:00]} Bxc3+ {[%emt 0:00:04]} 5. bxc3 {[%emt 0:00:00]} d6 {[%emt 0:00:10]} 6. Bd3 {[%emt 0:02:56]} e5 {[%emt 0:00:57] E40: Nimzo-Indian: Rubinstein (4 e3): Unusual Black 4th moves} 7. e4 {[%emt 0:04:44]} Nc6 {[%emt 0:01:13]} 8. Ne2 {[%emt 0:01:03]} O-O {[%emt 0:00:15]} 9. O-O {[%emt 0:00:34]} Re8 {[%emt 0:10:00]} 10. f3 {[%emt 0:06:51]} b6 {[%emt 0:06:23]} 11. Bg5 {[%emt 0:04:51]} h6 {[%emt 0:06:20]} 12. Bh4 {[%emt 0:02:44]} g5 {[%emt 0:01:26]} 13. Bf2 {[%emt 0:01:05]} Nh5 {[%emt 0:05:38] [#]} 14. Ng3 $146 {[%emt 0:08:42]} ({Predecessor:} 14. c5 dxc5 15. dxc5 {0-1 (48) Anton Guijarro,D (2574)-Emiroglu,C (2260) Budva 2013}) 14... Nf4 {[%emt 0:03:55]} 15. Nf5 {[%emt 0:02:54]} Qf6 {[%emt 0:01:57]} 16. Ne3 {[%emt 0:04:23]} exd4 {[%emt 0:06:25]} 17. Nd5 {[%emt 0:01:50]} Nxd5 {[%emt 0:01:19]} 18. cxd5 {[%emt 0:01:09]} Ne5 {[%emt 0:00:46]} 19. cxd4 {[%emt 0:01:35]} Nxd3 {[%emt 0:00:17]} 20. Qxd3 {[%emt 0:00:05]} Qg6 {[%emt 0:02:34]} 21. Rac1 {[%emt 0:10:59]} Re7 {[%emt 0:00:09]} 22. Rc3 {[%emt 0:04:20]} g4 {[%emt 0:01:11]} 23. Kh1 {[%emt 0:10:27]} Kh7 {[%emt 0:06:23]} 24. Bh4 {[%emt 0:04:03]} gxf3 {[%emt 0:01:55]} 25. gxf3 {[%emt 0:04:36]} Re8 $2 {[%emt 0:00:14]} (25... f6 26. Rg1 Qh5) 26. Rg1 $18 {[%emt 0:01:31]} Qh5 {[%emt 0:00:04]} 27. Bf6 {[%emt 0:03:40]} Rg8 {[%emt 0:00:04]} 28. Rxg8 Kxg8 {[%emt 0:00:01]} 29. Rxc7 {[%emt 0:03:08]} Bh3 {[%emt 0:02:05]} 30. Rc1 {[%emt 0:00:54]} Kh7 {[%emt 0:01:10]} 31. Rg1 {[%emt 0:01:33]} Rg8 {[%emt 0:00:00]} 32. Rxg8 {[%emt 0:01:43]} Kxg8 {[%emt 0:00:11]} 33. e5 {[%emt 0:01:40]} Kf8 {[%emt 0:05:19]} 34. Qa3 {[%emt 0:02:22]} Kg8 {[%emt 0:05:33]} 35. Qe3 {[%emt 0:00:17]} Kh7 {[%emt 0:04:42]} 36. Qf4 {[%emt 0:03:23]} Qg6 {[%emt 0:01:25]} 37. Qg3 {[%emt 0:00:27]} Qb1+ {[%emt 0:01:42]} 38. Qg1 {[%emt 0:00:01]} Qxg1+ {[%emt 0:00:49]} 39. Kxg1 {[%emt 0:00:01]} Kg6 {[%emt 0:00:24]} 40. Be7 {[%emt 0:02:30]} dxe5 {[%emt 0:00:09]} 41. dxe5 {[%emt 0:00:02]} Bc8 {[%emt 0:00:16]} 42. Kf2 {[%emt 0:00:46]} Kf5 {[%emt 0:00:31]} 43. Bf6 {[%emt 0:00:23]} Bb7 {[%emt 0:00:48]} 44. d6 {[%emt 0:00:04]} Bc6 {[%emt 0:00:26]} 45. Ke3 {[%emt 0:00:29]} Bd7 {[%emt 0:00:40]} 46. a3 {[%emt 0:01:35]} Be8 {[%emt 0:00:20]} 47. Bg7 {[%emt 0:01:38]} h5 {[%emt 0:00:01]} 48. h3 {[%emt 0:01:02]} Bc6 {[%emt 0:00:04]} 49. Bf6 {[%emt 0:00:19]} Bd7 {[%emt 0:00:26]} 50. f4 {[%emt 0:01:06]} Bc6 {[%emt 0:00:43]} 51. Bd8 {[%emt 0:00:24]} Ke6 {[%emt 0:00:38]} 52. Kd4 {[%emt 0:00:52]} h4 {[%emt 0:00:40]} 53. Bxh4 {[%emt 0:00:19]} Bg2 {[%emt 0:00:04]} 54. f5+ {[%emt 0:00:49]} Kd7 {[%emt 0:00:01]} 55. Ke3 {[%emt 0:00:48]} Bxh3 {[%emt 0:00:06]} 56. Kf4 {[%emt 0:00:08]} Bf1 {[%emt 0:01:13]} 57. Kg5 {[%emt 0:00:27]} Bc4 {[%emt 0:00:18]} 58. Bf2 {[%emt 0:00:46]} Bb3 {[%emt 0:00:10]} 59. Kf6 {[%emt 0:00:06]} Bc4 {[%emt 0:00:58]} 60. Kg7 {[%emt 0:00:46]} Ke8 {[%emt 0:00:09]} 61. Bd4 {[%emt 0:00:43]} Bb3 {[%emt 0:00:32]} 62. Kf6 {[%emt 0:02:55]} Kd7 {[%emt 0:00:51]} 63. Be3 {[%emt 0:00:58]} Bc4 {[%emt 0:00:16]} 64. Bg1 {[%emt 0:00:28]} Bb3 {[%emt 0:00:09]} 65. Bf2 {[%emt 0:00:38]} Bc4 {[%emt 0:00:05]} 66. Kg5 {[%emt 0:00:39]} Bb3 {[%emt 0:00:28]} 67. Bd4 {[%emt 0:00:36]} Bc4 {[%emt 0:00:07]} 68. Kf6 {[%emt 0:00:32]} Bb3 {[%emt 0:00:09]} 69. Kg7 {[%emt 0:00:07]} Ke8 {[%emt 0:00:11]} 70. Kg8 {[%emt 0:00:51]} Bc4 {[%emt 0:02:07]} 71. Kg7 {[%emt 0:00:26]} 1/2-1/2

[Event "94th Paris-ch  2019"]
[Site "Paris"]
[Date "2019.07.13"]
[Round "8.19"]
[White "French, Max"]
[Black "Lutard, Theo"]
[Result "1/2-1/2"]
[ECO "A90"]
[WhiteElo "2232"]
[BlackElo "2222"]
[Annotator "ChessBase"]
[PlyCount "85"]
[EventDate "2019.07.07"]
[EventType "swiss"]
[EventCountry "FRA"]
[SourceTitle "playchess.com"]
[Source "ChessBase"]
[SourceQuality "1"]
[TimeControl "5400+30"]

1. d4 {[%emt 0:00:00]} e6 {[%emt 0:00:00]} 2. c4 {[%emt 0:00:00]} f5 {[%emt 0:00:02]} 3. g3 {[%emt 0:00:17]} Nf6 {[%emt 0:00:13]} 4. Bg2 {[%emt 0:00:07]} d5 {[%emt 0:00:21]} 5. Nf3 {[%emt 0:04:30]} c6 {[%emt 0:00:19]} 6. O-O {[%emt 0:00:07]} Bd6 {[%emt 0:00:06]} 7. b3 {[%emt 0:04:25]} Qe7 {[%emt 0:00:51]} 8. Bb2 {[%emt 0:01:08]} b6 {[%emt 0:00:30]} 9. Qc1 {[%emt 0:02:15]} Bb7 {[%emt 0:00:35]} 10. Ba3 {[%emt 0:01:22]} Nbd7 {[%emt 0:00:24]} 11. Bxd6 {[%emt 0:00:09]} Qxd6 {[%emt 0:00:04]} 12. Qa3 {[%emt 0:01:23]} c5 {[%emt 0:00:32]} 13. Nbd2 {[%emt 0:06:06]} O-O {[%emt 0:02:24]} 14. e3 {[%emt 0:00:24]} Ne4 {[%emt 0:03:52]} 15. Qb2 {[%emt 0:03:54]} Rae8 {[%emt 0:07:35]} 16. Rad1 {[%emt 0:03:29]} Qe7 {[%emt 0:12:47]} 17. a3 {[%emt 0:04:55]} g5 {[%emt 0:07:05]} 18. b4 {[%emt 0:05:03]} g4 {[%emt 0:08:31]} 19. Ne1 {[%emt 0:01:38]} Ba6 {[%emt 0:13:13]} 20. b5 {[%emt 0:00:20]} Bb7 {[%emt 0:00:15]} 21. Nd3 {[%emt 0:15:48]} Rc8 {[%emt 0:09:22]} 22. Rc1 {[%emt 0:06:07]} Rfd8 {[%emt 0:04:26]} 23. Rfd1 {[%emt 0:01:17]} Ndf6 {[%emt 0:10:40]} 24. dxc5 {[%emt 0:14:07]} bxc5 {[%emt 0:06:29]} 25. Ne5 {[%emt 0:02:17]} Nd7 {[%emt 0:06:45]} 26. Nxd7 {[%emt 0:02:03]} Rxd7 {[%emt 0:00:14]} 27. Nxe4 {[%emt 0:00:49]} dxe4 {[%emt 0:02:07]} 28. Kf1 {[%emt 0:03:39]} Rcd8 {[%emt 0:01:13]} 29. Ke1 {[%emt 0:03:01]} Rxd1+ {[%emt 0:02:09]} 30. Rxd1 {[%emt 0:00:05]} Rxd1+ {[%emt 0:00:49]} 31. Kxd1 {[%emt 0:00:05]} Qd6+ {[%emt 0:00:39]} 32. Qd2 {[%emt 0:01:07]} Qxd2+ {[%emt 0:00:07]} 33. Kxd2 {[%emt 0:00:04]} Kf7 {[%emt 0:00:10]} 34. a4 {[%emt 0:01:02]} Ke7 {[%emt 0:00:15]} 35. a5 {[%emt 0:00:29]} Kd7 {[%emt 0:00:39]} 36. Bf1 {[%emt 0:00:46]} Kc7 {[%emt 0:00:44]} 37. Be2 {[%emt 0:00:15]} Bc8 {[%emt 0:00:21]} 38. Bd1 {[%emt 0:00:38]} e5 {[%emt 0:00:58]} 39. Ba4 {[%emt 0:01:41]} Be6 {[%emt 0:00:17]} 40. Kc3 {[%emt 0:00:08]} Kb7 {[%emt 0:00:24]} 41. Kb3 {[%emt 0:01:11]} h6 {[%emt 0:00:36]} 42. Kc3 {[%emt 0:00:13]} Bf7 {[%emt 0:00:38]} 43. Bc2 {[%emt 0:03:26]} 1/2-1/2

[Event "94th Paris-ch  2019"]
[Site "Paris"]
[Date "2019.07.13"]
[Round "8.21"]
[White "Girel, Joseph"]
[Black "Gervasio, Ricardo"]
[Result "1-0"]
[ECO "B30"]
[WhiteElo "2215"]
[BlackElo "2223"]
[Annotator "ChessBase"]
[PlyCount "83"]
[EventDate "2019.07.07"]
[EventType "swiss"]
[EventCountry "FRA"]
[SourceTitle "playchess.com"]
[Source "ChessBase"]
[SourceQuality "1"]
[TimeControl "5400+30"]

1. e4 {[%emt 0:00:00]} c5 {[%emt 0:00:00]} 2. Nf3 {[%emt 0:00:31]} Nc6 {[%emt 0:00:00]} 3. Bb5 {[%emt 0:00:44]} Na5 {[%emt 0:00:00]} 4. d4 {[%emt 0:04:22]} a6 {[%emt 0:00:00]} 5. Be2 {[%emt 0:00:59]} cxd4 {[%emt 0:00:04]} 6. Nxd4 {[%emt 0:00:24]} Qc7 {[%emt 0:00:23]} 7. Nc3 {[%emt 0:01:50]} e6 {[%emt 0:00:06]} 8. O-O {[%emt 0:02:34]} Nf6 {[%emt 0:06:18]} 9. Qd3 {[%emt 0:03:20]} b5 {[%emt 0:00:28]} 10. a3 {[%emt 0:05:16]} Bb7 {[%emt 0:00:37]} 11. f4 {[%emt 0:02:25]} Rc8 {[%emt 0:02:53]} 12. e5 {[%emt 0:03:18]} Nd5 {[%emt 0:00:14]} 13. Ne4 {[%emt 0:00:31]} Be7 {[%emt 0:04:05]} 14. Kh1 {[%emt 0:08:53]} Nc6 {[%emt 0:02:23]} 15. Nf3 {[%emt 0:07:27]} Na5 {[%emt 0:03:39]} 16. Nd4 {[%emt 0:02:00]} O-O {[%emt 0:14:10]} 17. b4 {[%emt 0:11:53]} Nc4 {[%emt 0:00:29]} 18. Nb3 {[%emt 0:01:06]} a5 {[%emt 0:04:29]} 19. c3 {[%emt 0:03:22]} f5 {[%emt 0:03:04]} 20. exf6 {[%emt 0:01:59]} Nxf6 {[%emt 0:00:01]} 21. Nxf6+ {[%emt 0:02:05]} Bxf6 {[%emt 0:01:30]} 22. Nc5 {[%emt 0:00:02]} Bd5 {[%emt 0:05:21]} 23. Be3 {[%emt 0:08:56]} d6 {[%emt 0:10:29]} 24. Ne4 {[%emt 0:01:30]} Be7 {[%emt 0:07:24]} 25. Bd4 {[%emt 0:06:59]} Qc6 {[%emt 0:00:48]} 26. Qg3 {[%emt 0:04:05]} e5 {[%emt 0:01:29]} 27. fxe5 {[%emt 0:00:02]} dxe5 {[%emt 0:01:24]} 28. Bc5 {[%emt 0:00:29]} Bxc5 {[%emt 0:02:02]} 29. Nxc5 {[%emt 0:01:10]} Rfe8 {[%emt 0:06:05]} 30. Bg4 {[%emt 0:02:38]} Rcd8 {[%emt 0:11:33]} 31. Qh3 {[%emt 0:01:42]} Re7 {[%emt 0:02:58]} 32. Rad1 {[%emt 0:01:55]} Rd6 {[%emt 0:00:27]} 33. Bf3 {[%emt 0:01:52]} e4 {[%emt 0:02:03]} 34. Rxd5 {[%emt 0:01:28]} exf3 {[%emt 0:04:00]} 35. Qxf3 {[%emt 0:00:46]} Rf6 {[%emt 0:01:11]} 36. Rd8+ {[%emt 0:01:31]} Re8 {[%emt 0:00:07]} 37. Rxe8+ {[%emt 0:00:52]} Qxe8 {[%emt 0:00:01]} 38. Qd5+ {[%emt 0:00:01]} Kh8 {[%emt 0:00:30]} 39. Qd3 {[%emt 0:02:07]} Nb2 {[%emt 0:02:48]} 40. Qb1 {[%emt 0:00:36]} Qe2 {[%emt 0:00:04]} 41. Re1 {[%emt 0:01:16]} Qf2 {[%emt 0:01:56]} 42. Ne4 {[%emt 0:00:22]} 1-0